Cogmind - Beta 15 @@@ ROGUE MODE // 2025.06.02 @ 14:33:50 Player: Elias Result: Destroyed by S-10 Pest with Light Assault Rifle Performance ------------- Evolutions (0) 0 Regions Visited (3) 600 Robots Destroyed (24) 120 Value Destroyed (473) 473 Prototype IDs (0) 0 Alien Tech Used (0) 0 Bonus (14) 14 TOTAL SCORE: 1207 Bonus ------- Follower Combat Kills 14 Cogmind --------- Core Integrity 0/250 Matter 288/300 Energy 70/100 System Corruption 12% Temperature Cool (0) Movement Walking (400) Ox4 Location -10/Subcaves Parts ------- > --- POWER (1) -------- (None) > --- PROPULSION (2) --- Aluminum Leg Aluminum Leg > --- UTILITY (2) ------ Huge Storage Unit Sensor Array > --- WEAPON (2) ------- Ripper > --- INVENTORY (25) --- Aluminum Leg Aluminum Leg Flight Unit Heat Sink Machine Analyzer Signal Interpreter Propulsion Shielding Light Armor Plating Light Armor Plating Light Armor Plating Scrap Shield Field Recycling Unit (0) Field Recycling Unit (0) Particle Gun Particle Gun Spread Laser Rocket Launcher Rocket Launcher Rocket Launcher Datajack Peak State ------------ > --- POWER ------------ Light Nuclear Core > --- PROPULSION ------- Aluminum Leg Aluminum Leg > --- UTILITY ---------- Huge Storage Unit Sensor Array > --- WEAPON ----------- Spread Laser Light Assault Rifle > --- INVENTORY -------- Aluminum Leg Aluminum Leg Aluminum Leg Aluminum Leg Flight Unit Heat Sink Machine Analyzer Signal Interpreter Propulsion Shielding Light Armor Plating Light Armor Plating Light Armor Plating Scrap Shield Field Recycling Unit Field Recycling Unit Particle Gun Particle Gun Spread Laser Battle Rifle Rocket Launcher Rocket Launcher Rocket Launcher Datajack Ripper [Rating: 14] Favorites ----------- Power Light Nuclear Core Engine Ion Engine Power Core Light Nuclear Core Propulsion Aluminum Leg Leg Aluminum Leg Utility Sensor Array Device Sensor Array Storage Huge Storage Unit Weapon Spread Laser Energy Gun Spread Laser Ballistic Gun Light Assault Rifle Launcher Rocket Launcher Special Weapon Mining Laser Slashing Weapon Ripper Build | -11 -10 -10 -10 ------- Run | Yrd Mat Min Sub Slots Evolved . | . . . . Power . | . . . . Propulsion . | . . . . Utility . | . . . . Weapon . | . . . . Parts Attached 25 | 7 8 4 6 Power 3 | 1 1 . 1 Engine 1 | 1 . . . Core 2 | . 1 . 1 Reactor . | . . . . Propulsion 7 | 2 1 1 3 Treads . | . . . . Leg 7 | 2 1 1 3 Wheel . | . . . . Hover . | . . . . Flight . | . . . . Utility 4 | 2 2 . . Device 2 | 1 1 . . Storage 2 | 1 1 . . Processor . | . . . . Hackware . | . . . . Protection . | . . . . Artifact . | . . . . Weapon 11 | 2 4 3 2 Energy Gun 5 | 1 3 1 . Energy Cannon . | . . . . Ballistic Gun 2 | 1 . . 1 Ballistic Cannon . | . . . . Launcher 2 | . . 2 . Special Weapon 1 | . 1 . . Impact Weapon . | . . . . Slashing Weapon 1 | . . . 1 Piercing Weapon . | . . . . Special Melee Weapon . | . . . . Unidentified Prototypes . | . . . . Parts Lost 11 | . 1 2 8 Power 3 | . . 1 2 Propulsion 3 | . . 1 2 Utility 1 | . 1 . . Weapon 4 | . . . 4 Highest Loss Streak 3 | . 1 1 3 To Critical Strikes 1 | . . . 1 Average Backups 19 | 3 11 21 22 Power . | . . 1 . Propulsion 3 | 1 2 3 4 Utility 8 | . 3 9 9 Weapon 6 | . 4 6 7 Tool/Special . | . . . . Unused Backups 19 | . 4 . 15 Power 1 | . 1 . . Propulsion 4 | . 2 . 2 Utility 10 | . . . 10 Weapon 3 | . 1 . 2 Tool/Special 1 | . . . 1 Average Slot Usage (%) 98 | . 98 98 98 Engine 4 | . 5 3 4 Core 9 | . 8 10 8 Leg 27 | . 28 26 27 Device 13 | . 12 14 14 Storage 14 | . 14 14 14 Energy Gun 16 | . 22 16 13 Ballistic Gun 9 | . 5 8 11 Launcher 1 | . . 3 . Peak Build Rating 14 | 7 13 13 14 Average Rating 11 | 5 10 12 12 On Entrance 7 | . 7 13 11 Naked Turns . | . . . . Heaviest Build 94 | 13 92 94 91 Greatest Support 20 | 20 20 20 20 Greatest Overweight (x) 9 | . 4 9 8 Average Overweight (x) 3 | . 1 4 4 Largest Inventory Capacity 25 | 8 25 25 25 Average Capacity 23 | 7 18 25 25 Most Carried 25 | 6 20 23 25 Average Carried 19 | 3 11 21 23 Final Capacity 25 | 8 25 25 25 Final Carried 23 | 5 20 23 21 Class Distribution -------------------- 100% | Mutant Dominant Class ---------------- Mutant | -10/Materials Mutant | -10/Mines Mutant | -10/Subcaves Resources | -11 -10 -10 -10 ----------- Run | Yrd Mat Min Sub Matter Collected 586 | 287 99 108 92 Remotely . | . . . . Salvage Created 609 | 184 181 147 97 Parts 51 | 15 13 9 14 Haulers Intercepted . | . . . . Recyclers Shooed . | . . . . Parts Field Recycled . | . . . . Retrieved Matter . | . . . . Parts Self-Destructed 13 | . . . 13 Prevented . | . . . . Kills | -11 -10 -10 -10 ------- Run | Yrd Mat Min Sub Combat Hostiles Destroyed 14 | . 3 5 6 Guns 14 | . 3 5 6 Classes Destroyed 8 | 3 3 1 1 Worker 2 | 2 . . . Tunneler 4 | 4 . . . Recycler 1 | 1 . . . Mechanic 1 | . 1 . . Watcher 2 | . 2 . . Swarmer 6 | . . 1 5 Grunt 7 | . 3 4 . Sentry 1 | . . . 1 Best Kill Streak 6 | 6 2 2 2 Combat Bots Only 2 | . 2 2 2 Max Kills in Single Turn 1 | 1 1 1 1 Gunslinging . | . . . . Exploded . | . . . . Melee . | . . . . Uniques/NPCs Destroyed . | . . . . Combat | -11 -10 -10 -10 -------- Run | Yrd Mat Min Sub Hostile Shots Fired 99 | . 15 37 47 Missed 25 | . 1 8 16 Hits 74 | . 14 29 31 Projectile 74 | . 14 29 31 AOE 4 | . . 4 . Critical Strikes 3 | . 2 . 1 Damage Taken 1389 | . 182 547 660 Core 254 | . 23 119 112 Absorbed by Shields . | . . . . Core Remaining (%) 100 | 100 . . . Volleys Fired 88 | 21 27 16 24 Largest 2 | 2 2 2 2 Hottest 165 | 60 130 130 165 Shots Fired 161 | 41 51 32 37 Gun 150 | 41 50 28 31 Cannon . | . . . . Launcher 4 | . . 4 . Special 7 | . 1 . 6 Kinetic 71 | 21 23 13 14 Thermal 86 | 20 28 15 23 Explosive 4 | . . 4 . Electromagnetic . | . . . . Robot Hit Streak 16 | 5 8 16 7 Robot Miss Streak 8 | 1 8 4 6 Penetration Max . | . . . . Secondary Targets 1 | . . 1 . Max Gunslinging Chain 1 | . . 1 . Shots Hit Robots 98 | 20 29 25 24 Core Hits 65 | 10 13 26 16 Critical Kills . | . . . . Critical Parts Destroyed . | . . . . Critical Strikes 1 | . . 1 . Burn 1 | . . 1 . Melee Attacks 2 | . . . 2 Impact . | . . . . Slashing 2 | . . . 2 Piercing . | . . . . Sneak Attacks . | . . . . Combat Hostiles . | . . . . Follow-up Attacks . | . . . . Damage Inflicted 1109 | 195 308 301 305 Guns 1020 | 194 308 256 262 Cannons . | . . . . Explosions 41 | . . 41 . Melee 43 | . . . 43 Ramming 5 | 1 . 4 . Kinetic 369 | 105 100 69 95 Thermal 651 | 89 208 187 167 Explosive 41 | . . 41 . Electromagnetic . | . . . . Impact . | . . . . Slashing 43 | . . . 43 Piercing . | . . . . Highest Corruption 12 | . . . 12 Average Corruption 12 | . . . 12 Corruption Purged . | . . . . Corruption Blocked . | . . . . Effects 2 | . . . 2 Energy Discharges 1 | . . . 1 Misfires 1 | . . . 1 Overload Shots . | . . . . Overflow Damage 3 | . . . 3 Projectiles . | . . . . Explosions . | . . . . Melee 3 | . . . 3 Knockbacks . | . . . . Impact . | . . . . Kinetic . | . . . . Secondary . | . . . . Self-Inflicted Damage 102 | . . 102 . Shots 3 | . . 3 . Rammed . | . . . . Targets Rammed 3 | 2 . 1 . Kicked 3 | 2 . 1 . Crushed . | . . . . Highest Temperature 210 | 60 136 210 17 Average Temperature 48 | 24 44 82 9 Received Heat Transfer 369 | . 138 165 66 Siege Activations . | . . . . Martial Activations . | . . . . Shielding Activations . | . . . . Robots Disrupted . | . . . . Combat Hostiles . | . . . . Robots Corrupted . | . . . . Combat Hostiles . | . . . . Parts Fried . | . . . . Impact Corruptions . | . . . . Robots Melted . | . . . . Combat Hostiles . | . . . . Parts Melted 1 | . . 1 . Heat Transferred 1215 | 200 464 331 220 Parts Sabotaged . | . . . . Parts Stolen . | . . . . Parts Stripped . | . . . . Power Chain Reactions . | . . . . Alert | -11 -10 -10 -10 ------- Run | Yrd Mat Min Sub Maximum Alert Level . | . . . . Low Security (%) 100 | 100 100 100 . Level 1 . | . . . . Level 2 . | . . . . Level 3 . | . . . . Level 4 . | . . . . Level 5 . | . . . . High Security . | . . . . Max Security . | . . . . Peak Influence 60 | 10 60 49 . Initial . | . . . . Average 6 | 1 7 5 . Influence Increases 631 | 35 144 182 270 Destroy 0b10 Robot/C 320 | . 60 140 120 Destroy 0b10 Robot/NC 50 | 35 15 . . Destroy Leader 54 | . 24 30 . Allied During Kill 9 | . . 9 . Disable Machine 15 | . 15 . . Destroy Structure 3 | . . 3 . Lose Combat Pursuer 180 | . 30 . 150 Influence Decreases 488 | 35 144 182 127 Time Decay 395 | 35 134 149 77 Lost Part 73 | . 10 13 50 Lost Ally 20 | . . 20 . Squads Dispatched 1 | . 1 . . Investigation 1 | . 1 . . Extermination . | . . . . Reinforcement . | . . . . Assault . | . . . . Garrison . | . . . . Intercept . | . . . . Searches Triggered . | . . . . Construction Impeded . | . . . . Haulers Reinforced . | . . . . Active Scanning Responses . | . . . . Cargo Convoy Interrupts . | . . . . Stealth | -11 -10 -10 -10 --------- Run | Yrd Mat Min Sub Distress Signals 1 | . 1 . . Communications Jammed . | . . . . Distress Signals . | . . . . Times Spotted 43 | . 12 15 16 Peak Tracking Total 14 | . 3 14 4 Tactical Retreats 7 | . 1 1 5 Traps | -11 -10 -10 -10 ------- Run | Yrd Mat Min Sub Traps Triggered 1 | . 1 . . Indirectly . | . . . . Trap Hack Attempts . | . . . . Triggered . | . . . . Disarmed . | . . . . Reprogrammed . | . . . . Reused . | . . . . Traps Extracted . | . . . . Installed . | . . . . Triggered . | . . . . Machines | -11 -10 -10 -10 ---------- Run | Yrd Mat Min Sub Machines Disabled 1 | . 1 . . Max in Single Turn 1 | . 1 . . Machines Repaired . | . . . . Machines Dismantled . | . . . . Machines Sabotaged . | . . . . Overloaded Fab Kills . | . . . . Hacking | -11 -10 -10 -10 --------- Run | Yrd Mat Min Sub Machines Accessed 2 | . 1 . 1 Terminals . | . . . . Fabricators . | . . . . Repair Stations . | . . . . Recycling Units 1 | . 1 . . Scanalyzers . | . . . . Garrison Access . | . . . . Total Hacks 5 | . 1 . 4 Successful 5 | . 1 . 4 Failed . | . . . . Catastrophic . | . . . . Database Lockouts . | . . . . Manual . | . . . . Terminals . | . . . . Fabricators . | . . . . Repair Stations . | . . . . Recycling Units 1 | . 1 . . Scanalyzers . | . . . . Garrison Access . | . . . . Terminal Hacks 4 | . . . 4 Record 4 | . . . 4 Fabricator Hacks . | . . . . Repair Station Hacks . | . . . . Recycling Unit Hacks 1 | . 1 . . Retrieve Components 1 | . 1 . . Scanalyzer . | . . . . Garrison Access Hacks . | . . . . Unauthorized Hacks . | . . . . Terminals . | . . . . Fabricators . | . . . . Repair Stations . | . . . . Recycling Units . | . . . . Scanalyzers . | . . . . Garrison Access . | . . . . Data Cores Recovered . | . . . . Used . | . . . . Hacking Detections . | . . . . Full Trace Events . | . . . . Feedback Events . | . . . . Feedback Blocked . | . . . . Robot Schematics Acquired . | . . . . Robots Built . | . . . . Authchips . | . . . . Time . | . . . . Total Robot Build Rating . | . . . . Part Schematics Acquired . | . . . . Parts Built . | . . . . Authchips . | . . . . Time . | . . . . Total Part Build Rating . | . . . . Parts Repaired . | . . . . Time . | . . . . Parts Recycled . | . . . . Recycled Matter . | . . . . Retrieved Matter . | . . . . Retrieved Components 10 | . 10 . . Parts Scanalyzed . | . . . . Part Schematics Acquired . | . . . . Parts Damaged . | . . . . Bothacking | -11 -10 -10 -10 ------------ Run | Yrd Mat Min Sub Used RIF Installer . | . . . . Robots Hacked . | . . . . Non-combat . | . . . . Combat . | . . . . Robot Hacks Applied . | . . . . Relay Couplers Released . | . . . . Fabnet Peak Effective % . | . . . . Robots Rewired . | . . . . Allies Hacked . | . . . . Hacks Repelled . | . . . . Allies | -11 -10 -10 -10 -------- Run | Yrd Mat Min Sub Total Allies 3 | . . 3 . Largest Group 3 | . . 3 . Highest-Rated Group 40 | . . 40 . Highest-Rated Ally 16 | . . 16 . Total Orders 1 | . . 1 . GUARD 1 | . . 1 . Ally Attacks 28 | . . 28 . Total Damage 240 | . . 240 . Kills 4 | . . 4 . Allies Corrupted . | . . . . Allies Melted . | . . . . Intel | -11 -10 -10 -10 ------- Run | Yrd Mat Min Sub Active Infowar (turns) 4638 | 63 769 1675 2131 Sensors 4513 | . 707 1675 2131 Seismic 125 | 63 62 . . Robot Analysis Total . | . . . . Derelict Logs Recovered 3 | . . 2 1 Drone Launches . | . . . . Drone Recoveries . | . . . . Exploration | -11 -10 -10 -10 ------------- Run | Yrd Mat Min Sub Turns Passed 4873 | 213 854 1675 2131 Spaces Moved 1321 | 120 321 384 496 Core 14 | 14 . . . Treads . | . . . . Legs 1307 | 106 321 384 496 Wheels . | . . . . Hover . | . . . . Flight . | . . . . Fastest Speed 50 | 50 120 400 400 Average Speed 339 | 111 230 415 405 Slowest Speed 750 | 120 400 750 680 Overloaded Moves . | . . . . Propulsion Burnouts . | . . . . Robots Hopped . | . . . . Potential Cave-ins . | . . . . Cave-ins Triggered 1 | . . . 1 Exploration Rate (%) 42 | 7 38 93 33 Regions Visited 3 Branch Regions 2 Pre-discovered Areas 1 | . . . 1 Known Exits Taken . | . . . . Unknown Exits Taken 3 | 1 1 1 . Scrap Searched 4 | . . 1 3 Spaces Dug 1 | . . . 1 Terrain Destroyed 13 | . . 12 1 Melee 1 | . . . 1 Projectile . | . . . . AOE 12 | . . 12 . Terrain Rammed . | . . . . Walls Destroyed . | . . . . Machines Disabled . | . . . . Actions | -11 -10 -10 -10 --------- Run | Yrd Mat Min Sub Total 1552 | 161 391 432 568 Wait 59 | . 6 21 32 Move 1318 | 119 320 383 496 Hop . | . . . . Pick Up 42 | 12 21 5 4 Fast Attach 1 | . 1 . . Attach 15 | 7 . 2 6 Detach . | . . . . Swap 14 | . 7 4 3 Drop 10 | . 9 . 1 Fire 88 | 21 27 16 24 Melee 2 | . . . 2 Ram . | . . . . Kick 3 | 2 . 1 . Crush . | . . . . Escape Stasis . | . . . . Rewire . | . . . . Trap . | . . . . Miscellaneous . | . . . . Route ------- -11/Scrapyard -10/Materials (discovered 2 exits: [*Min x2]) -10/Mines (discovered 3 exits: [*Mat x2] / *Sub) -10/Subcaves (discovered 3 exits: Mat x2 / Rec) History --------- Turn | Location | Event 7 | -11/Scrapyard | Discovered new exit (range 16) 214 | -11/Scrapyard | Entered Materials 230 | -10/Materials | Discovered new exit (range 5) 318 | -10/Materials | Build established: Mutant 479 | -10/Materials | Discovered new exit (range 6) 1068 | -10/Materials | Entered Mines 1092 | -10/Mines | Assisted by bots powering up and referring to "LRC-V3" 1096 | -10/Mines | Learned Materials terminal intel 1128 | -10/Mines | Discovered new exit (range 10) 1496 | -10/Mines | Assembled infested the area 1501 | -10/Mines | Assisted by a Guerilla fighting off Assembled 1939 | -10/Mines | Core integrity fell below 50% 2293 | -10/Mines | Learned Materials garrison access intel 2639 | -10/Mines | Discovered new exit (range 14) 2719 | -10/Mines | Discovered new exit (range 7) 2743 | -10/Mines | Entered Subcaves 2744 | -10/Subcaves | Approached by a straggling Scientist 2747 | -10/Subcaves | Learned location of Zion (-7) 3024 | -10/Subcaves | A swath of the cavern ceiling suddenly collapsed 3441 | -10/Subcaves | Disturbed a concealed Subdweller 4240 | -10/Subcaves | Visited Clippyterm 4252 | -10/Subcaves | Identified exit to Materials 4252 | -10/Subcaves | Identified exit to Recycling 4833 | -10/Subcaves | Crushed by falling debris 4833 | -10/Subcaves | Core integrity fell below 20% 4833 | -10/Subcaves | System corruption reached 10% 4864 | -10/Subcaves | Lost 3 parts (1p1n1w) 4874 | -10/Subcaves | Destroyed by S-10 Pest with Light Assault Rifle Last Messages --------------- 04792_ S-10 Pest destroyed. 04794_ Acquired 7 matter. 04798_ Acquired 2 matter. 04799_ Lgt. Ion Engine fries itself beyond repair. 04807_ Lgt. Assault Rifle fries itself beyond repair. 04828_ S-10 Pest destroyed. 04833_ The unstable cave ceiling collapses. 04833_ Crushed by falling debris. 04833_ Battle Rifle destroyed. 04833_ System corrupted by crushing effect (+5). 04833_ Lgt. Nuclear Core destroyed. 04833_ System corrupted by crushing effect (+5). 04833_ Aluminum Leg destroyed. 04833_ System corrupted by crushing effect (+2). 04838_ System corrupted: FCS attempts to trigger Spread Laser. 04838_ System corrupted: Spread Laser misfires. 04858_ System corrupted: Energy discharge (-16). 04864_ Acquired 13 matter. 04866_ Spread Laser destroyed. 04872_ Destroyed Lgt. Ion Engine. Map ----- +----------------------------------------------------+ | ????????????????????????????????????????????????## | | ???????????????????????????????????????????????## | | ???????????????????????????????????????????????? | | ????????????????????????????????????????????????# | | ????????????????????????????????????????????????# | | ????????????????????????????????????????????????# | | ????????????????????????????????????????????????# | | ????????????????????????????????????????????????## | | ?????????????????????????????????????????????????# | | ?????????????????????????????????????????????????? | | ?????????????????????????????????????????????????? | | ????????????????????????????????????????????###?## | | ??????????????????????????????????????????### # | | ??????????????????????????????????????? | | ??????????????????????????????????????? | | ??????????????????#####>????????????????# # # % | | ??????????????????#""""?????????????????? ???### | | ??????????????????#" " ?????????????????????????# | | ??????????????????#" ? ?????###?????????????????# | | ??????????????????# ?????# ????????????????# | | ??????????????????? ?????? ????????????????# | | ???????????????????? ?????? ??????????????### | | ??????????? ????## ??????# ?????????## # | | ?????????? ### s ??????# ?????# | | ?????????? ##???## #???# # # | | ??????????# @#???# # ##??#?????##?### | | ????????????# ###?# "#"###?????????### | | ?????????????## # %### "#"##????###### | | ??????????????## #### #"# ##""####### ## | | ???????????????## #?# ## #"#"#"# | | ????????????????# #?## ####""" | | ????????????????#%& #??# ##" ## # | | ????????????????# ???# # ## ### ####### | | ????????????????# ????## #"##### #?????? | | ???????????????? ??????## ## ## #?# ##????? | | ???????????????# ????????## #### %& ### #????? | | ??????????????? ??????????###??#% & ### ###????? | | ???????????????????????????????# ####?##???? | | ???????????????????????????????## ##?## ##?? | | ????????????????????????????????# #?? ### | | ???????????????????????????????## ##? | | ????????????????????????? ## ##?# | | ???????????????????????? ### | | ??????????????????????? ## | | ??????????????????????? | | ????????????????????????# | | ????????????????????????## ## | | ?????????????????????????## ##### | | ??????????????????????????# #???## | | ?????????????????????????# ##### #????# | +----------------------------------------------------+ Best States ------------- Heat Dissipation 25 Energy Generation 14 Energy Capacity 250 Matter Stores 300 Matter Capacity 300 Sight Range 16 Robot Scan Range 14 Terrain Scan Density 10 Evasion (%) 55 Item Schematics ----------------- None Robot Schematics ------------------ None Fabricated ------------ Nothing Repaired ---------- Nothing Alien Tech Used ----------------- None Achievements -------------- None Challenges ------------ None Game ------ Seed DisassembledThunderLegs Manual? 0 Play Time 00:15:35 Cumulative 41.0 hours Start 2025.06.02 @ 14:19:21 End 2025.06.02 @ 14:33:50 Sessions 1 Manual Loads 0 Difficulty Rogue Special Mode None Game No. 70 Rogue 70 Adventurer 0 Explorer 0 Win Type - Total 0 Types 0/0/0/0/0/0/0/0/0/0 Lore% 33 Gallery% 35 Achievement% 30 Wizard Run 0 Options --------- Layout 0 ASCII 0 Keyboard 0 Movement Mouse Keybinds 0 Fullscreen 1 Font 18/SmallcapsGlow Map View 76x50 Zoom Use 0% Tactical HUD 1 Map Filters NONE Filters NONE Steam 1 RUN: 9dd68c29-5f37-49c6-94be-ca9854c97cf8